Cogmind - Beta 11 @@@ ROGUE MODE // 2022.03.26 @ 15:40:48 Player: Cracklepappy Result: Self-destructed Performance ------------- Evolutions (2) 1000 Regions Visited (5) 1000 Robots Destroyed (47) 235 Value Destroyed (976) 976 Prototype IDs (4) 80 Alien Tech Used (0) 0 Bonus (-59) -59 TOTAL SCORE: 3232 Bonus ------- Follower Combat Kills 49 Friendly Fire -108 Cogmind --------- Core Integrity 412/550 Matter 38/300 Energy 125/125 System Corruption 0% Temperature Cool (69) Movement Treading (240) Ox1 Location -8/Materials Parts ------- > --- POWER (1) -------- Light Ion Engine > --- PROPULSION (3) --- Light Treads Light Treads Improved Treads > --- UTILITY (5) ------ Huge Storage Unit Seismic Detector Salvage Targeting Computer Weapon Shielding Improved Light Armor Plating > --- WEAPON (2) ------- Light Assault Rifle Light Cannon > --- INVENTORY (25) --- High-capacity Storage Unit High-capacity Storage Unit Humpback Humpback Humpback Salvage Targeting Computer Salvage Targeting Computer Assault Rifle Light Assault Rifle Improved Light Cannon Datajack Mining Laser Peak State ------------ > --- POWER ------------ Light Ion Engine > --- PROPULSION ------- Light Treads Light Treads Improved Treads > --- UTILITY ---------- Huge Storage Unit Seismic Detector Salvage Targeting Computer Weapon Shielding Improved Light Armor Plating > --- WEAPON ----------- Assault Rifle Assault Rifle > --- INVENTORY -------- Light Ion Engine High-capacity Storage Unit High-capacity Storage Unit Humpback Humpback Humpback Salvage Targeting Computer Salvage Targeting Computer EM Shotgun Light Assault Rifle Light Assault Rifle Light Cannon Improved Light Cannon Datajack Mining Laser [Rating: 17] Favorites ----------- Power Ion Engine Engine Ion Engine Propulsion Light Treads Treads Light Treads Wheel Wheel Utility Huge Storage Unit Device Seismic Detector Storage Huge Storage Unit Processor Salvage Targeting Computer Protection Light Armor Plating Weapon EM Shotgun Energy Gun EM Shotgun Ballistic Gun Assault Rifle Ballistic Cannon Light Cannon Launcher Rocket Launcher Special Weapon Mining Laser Special Melee Weapon Datajack Build | -11 -10 -10 -10 -9 -8 ------- Run | Scr Mat Min Exi Min Mat Slots Evolved 4 | . . . . . 4 Power . | . . . . . . Propulsion 1 | . . . . . 1 Utility 3 | . . . . . 3 Weapon . | . . . . . . Parts Attached 46 | 7 13 3 1 12 10 Power 5 | 1 1 1 . 1 1 Engine 5 | 1 1 1 . 1 1 Core . | . . . . . . Reactor . | . . . . . . Propulsion 10 | 2 . 1 . 6 1 Treads 5 | 1 . . . 3 1 Leg . | . . . . . . Wheel 5 | 1 . 1 . 3 . Hover . | . . . . . . Flight . | . . . . . . Utility 12 | 2 4 1 1 1 3 Device 3 | 1 1 . . . 1 Storage 4 | 1 3 . . . . Processor 1 | . . . . 1 . Hackware . | . . . . . . Protection 4 | . . 1 1 . 2 Artifact . | . . . . . . Weapon 19 | 2 8 . . 4 5 Energy Gun 7 | 1 4 . . 1 1 Energy Cannon . | . . . . . . Ballistic Gun 6 | 1 1 . . 2 2 Ballistic Cannon 3 | . 2 . . . 1 Launcher 1 | . . . . 1 . Special Weapon 1 | . . . . . 1 Impact Weapon . | . . . . . . Slashing Weapon . | . . . . . . Piercing Weapon . | . . . . . . Special Melee Weapon 1 | . 1 . . . . Unidentified Prototypes . | . . . . . . Parts Lost 16 | . 3 2 . 8 3 Power 3 | . . 1 . 1 1 Propulsion 5 | . . 1 . 4 . Utility 2 | . 1 . . 1 . Weapon 6 | . 2 . . 2 2 Highest Loss Streak 7 | . 2 1 . 7 3 To Critical Strikes . | . . . . . . Average Slot Usage (%) 97 | . 99 99 97 94 92 Engine 13 | . 14 13 14 9 9 Treads 15 | . 14 14 14 17 22 Wheel 12 | . 14 14 14 10 . Device 4 | . 13 . . . 9 Storage 13 | . 14 14 14 14 9 Processor 1 | . . . . 4 9 Protection 8 | . . 13 12 9 15 Energy Gun 23 | . 22 28 28 19 . Ballistic Gun 3 | . 5 . . 8 15 Naked Turns . | . . . . . . Heaviest Build 95 | 14 92 94 94 95 92 Greatest Support 63 | 20 16 16 10 40 63 Greatest Overweight (x) 9 | . 5 9 9 7 2 Average Overweight (x) 6 | . 3 7 9 5 1 Largest Inventory Capacity 25 | 8 25 25 25 25 25 Average Capacity 23 | 6 22 25 25 25 25 Most Carried 25 | 8 25 25 25 25 19 Average Carried 22 | 5 20 24 24 23 17 Final Capacity 25 | 8 25 25 25 25 25 Final Carried 25 | 8 24 24 25 20 15 Class Distribution -------------------- 97% | Mutant Dominant Class ---------------- Mutant | -10/Materials Mutant | -10/Mines Mutant | -10/Exiles Mutant | -9/Mines Mutant | -8/Materials Resources | -11 -10 -10 -10 -9 -8 ----------- Run | Scr Mat Min Exi Min Mat Matter Collected 545 | 306 158 30 . 51 . Remotely . | . . . . . . Salvage Created 1480 | 154 753 219 . 199 155 Parts 90 | 13 48 14 . 7 8 Haulers Intercepted 2 | . 2 . . . . Recyclers Shooed . | . . . . . . Parts Field Recycled . | . . . . . . Retrieved Matter . | . . . . . . Parts Self-Destructed . | . . . . . . Prevented . | . . . . . . Kills | -11 -10 -10 -10 -9 -8 ------- Run | Scr Mat Min Exi Min Mat Combat Hostiles Destroyed 46 | . 17 9 . 17 3 Guns 24 | . 14 6 . 2 2 Cannons 1 | . . . . . 1 AOE 21 | . 3 3 . 15 . Classes Destroyed 12 | 3 5 . . 3 1 Worker 1 | 1 . . . . . Builder 1 | . . . . 1 . Tunneler 4 | 4 . . . . . Hauler 2 | . 2 . . . . Recycler 2 | 1 . . . 1 . Operator 2 | . 2 . . . . Watcher 3 | . 3 . . . . Swarmer 13 | . 6 6 . 1 . Grunt 17 | . 11 3 . 1 2 Duelist 1 | . . . . . 1 Demolisher 1 | . . . . 1 . Assembled 15 | . . . . 15 . Best Kill Streak 17 | 3 3 3 . 17 3 Combat Bots Only 15 | . 3 3 . 15 3 Max Kills in Single Turn 5 | 1 1 2 . 5 1 Gunslinging . | . . . . . . Exploded 5 | . 1 2 . 5 . Melee . | . . . . . . Uniques/NPCs Destroyed . | . . . . . . Combat | -11 -10 -10 -10 -9 -8 -------- Run | Scr Mat Min Exi Min Mat Damage Taken 1932 | . 427 202 . 657 646 Core 356 | . 54 46 . 118 138 Absorbed by Shields . | . . . . . . Redirected to Shielding 32 | . . . . . 32 Core Remaining (%) 56 | 100 . . . 12 . Volleys Fired 89 | 12 41 11 . 11 14 Largest 2 | 2 2 2 . 2 2 Hottest 100 | 60 90 90 . 90 100 Shots Fired 169 | 24 82 22 . 16 25 Gun 155 | 24 80 22 . 10 19 Cannon 6 | . 2 . . . 4 Launcher 6 | . . . . 6 . Special 2 | . . . . . 2 Kinetic 52 | 12 10 . . 8 22 Thermal 16 | 12 2 . . . 2 Explosive 6 | . . . . 6 . Electromagnetic 95 | . 70 22 . 2 1 Robot Hit Streak 11 | 5 11 5 . 5 6 Robot Miss Streak 7 | 3 7 6 . 4 2 Penetration Max . | . . . . . . Secondary Targets 1 | . . . . . 1 Max Gunslinging Chain 1 | . . . . . 1 Shots Hit Robots 107 | 13 56 16 . 6 16 Core Hits 108 | 7 41 14 . 37 9 Critical Kills 1 | 1 . . . . . Critical Parts Destroyed . | . . . . . . Critical Strikes 2 | 1 . . . . 1 Destroy 1 | 1 . . . . . Blast 1 | . . . . . 1 Melee Attacks . | . . . . . . Impact . | . . . . . . Slashing . | . . . . . . Piercing . | . . . . . . Sneak Attacks . | . . . . . . Combat Hostiles . | . . . . . . Follow-up Attacks . | . . . . . . Damage Inflicted 2801 | 159 940 448 . 1054 200 Guns 1377 | 159 762 224 . 70 162 Cannons 56 | . 18 . . . 38 Explosions 1368 | . 160 224 . 984 . Melee . | . . . . . . Ramming . | . . . . . . Kinetic 421 | 114 72 . . 54 181 Thermal 439 | 45 170 224 . . . Explosive 984 | . . . . 984 . Electromagnetic 957 | . 698 224 . 16 19 Impact . | . . . . . . Slashing . | . . . . . . Piercing . | . . . . . . Highest Corruption . | . . . . . . Average Corruption . | . . . . . . Corruption Purged . | . . . . . . Corruption Blocked . | . . . . . . Overload Shots . | . . . . . . Overflow Damage 25 | . . 20 . 5 . Projectiles . | . . . . . . Explosions 25 | . . 20 . 5 . Melee . | . . . . . . Knockbacks . | . . . . . . Impact . | . . . . . . Kinetic . | . . . . . . Secondary . | . . . . . . Self-Inflicted Damage 109 | . 20 49 . 40 . Shots 5 | . 1 2 . 2 . Rammed . | . . . . . . Targets Rammed . | . . . . . . Kicked . | . . . . . . Crushed . | . . . . . . Highest Temperature 204 | . 204 129 . 45 84 Average Temperature 52 | . 64 51 . 24 20 Received Heat Transfer 571 | . 102 45 . 46 378 Siege Activations . | . . . . . . Robots Corrupted . | . . . . . . Combat Hostiles . | . . . . . . Parts Fried 1 | . 1 . . . . Impact Corruptions . | . . . . . . Robots Melted . | . . . . . . Combat Hostiles . | . . . . . . Parts Melted . | . . . . . . Heat Transferred 625 | 100 275 250 . . . Parts Sabotaged . | . . . . . . Parts Stolen . | . . . . . . Parts Stripped . | . . . . . . Power Chain Reactions 7 | . 3 4 . . . Missiles Intercepted . | . . . . . . Alert | -11 -10 -10 -10 -9 -8 ------- Run | Scr Mat Min Exi Min Mat Peak Influence 335 | 30 240 335 . 102 52 Initial 82 | . 19 82 . . . Average 102 | 9 131 130 . 58 4 Maximum Alert Level 1 | . 1 1 . . . Low Security (%) 84 | 100 73 82 . 100 100 Level 1 15 | . 26 17 . . . Level 2 . | . . . . . . Level 3 . | . . . . . . Level 4 . | . . . . . . Level 5 . | . . . . . . High Security . | . . . . . . Max Security . | . . . . . . Squads Dispatched 6 | . 5 . . . 1 Investigation 3 | . 3 . . . . Extermination . | . . . . . . Reinforcement 3 | . 2 . . . 1 Assault . | . . . . . . Garrison . | . . . . . . Intercept . | . . . . . . Searches Triggered . | . . . . . . Construction Impeded . | . . . . . . Haulers Reinforced . | . . . . . . Active Scanning Responses . | . . . . . . Cargo Convoy Interrupts . | . . . . . . Stealth | -11 -10 -10 -10 -9 -8 --------- Run | Scr Mat Min Exi Min Mat Distress Signals 1 | . . . . . 1 Communications Jammed . | . . . . . . Distress Signals . | . . . . . . Times Spotted 75 | . 28 11 . 26 10 Peak Tracking Total 20 | . 5 3 . 20 7 Tactical Retreats 2 | . 1 1 . . . Traps | -11 -10 -10 -10 -9 -8 ------- Run | Scr Mat Min Exi Min Mat Traps Triggered 1 | . 1 . . . . Indirectly . | . . . . . . Trap Hack Attempts 6 | . 6 . . . . Triggered . | . . . . . . Disarmed . | . . . . . . Reprogrammed 1 | . 1 . . . . Reused . | . . . . . . Traps Extracted . | . . . . . . Installed . | . . . . . . Triggered . | . . . . . . Machines | -11 -10 -10 -10 -9 -8 ---------- Run | Scr Mat Min Exi Min Mat Machines Disabled 3 | . 1 2 . . . Max in Single Turn 1 | . 1 1 . . . Machines Sabotaged . | . . . . . . Garrisons Compromised . | . . . . . . Overloaded Fab Kills . | . . . . . . Hacking | -11 -10 -10 -10 -9 -8 --------- Run | Scr Mat Min Exi Min Mat Machines Accessed 10 | . 9 . 1 . . Terminals 7 | . 7 . . . . Fabricators . | . . . . . . Repair Stations . | . . . . . . Recycling Units 2 | . 2 . . . . Scanalyzers . | . . . . . . Garrison Access . | . . . . . . Total Hacks 30 | . 26 . 4 . . Successful 18 | . 14 . 4 . . Failed 12 | . 12 . . . . Catastrophic 1 | . 1 . . . . Database Lockouts . | . . . . . . Manual 12 | . 12 . . . . Terminals 24 | . 24 . . . . Fabricators . | . . . . . . Repair Stations . | . . . . . . Recycling Units 2 | . 2 . . . . Scanalyzers . | . . . . . . Garrison Access . | . . . . . . Terminal Hacks 16 | . 12 . 4 . . Record 4 | . . . 4 . . Part Schematic 4 | . 4 . . . . Prototype ID Bank 3 | . 3 . . . . Locate Traps 3 | . 3 . . . . Hauler Manifests 1 | . 1 . . . . Zone Layout 1 | . 1 . . . . Fabricator Hacks . | . . . . . . Repair Station Hacks . | . . . . . . Recycling Unit Hacks . | . . . . . . Scanalyzer . | . . . . . . Garrison Access Hacks . | . . . . . . Unauthorized Hacks 2 | . 2 . . . . Terminals . | . . . . . . Fabricators . | . . . . . . Repair Stations . | . . . . . . Recycling Units 2 | . 2 . . . . Tunnel 2 | . 2 . . . . Scanalyzers . | . . . . . . Garrison Access . | . . . . . . Data Cores Recovered 1 | . 1 . . . . Used 1 | . 1 . . . . Hacking Detections 7 | . 7 . . . . Full Trace Events 1 | . 1 . . . . Feedback Events . | . . . . . . Feedback Blocked . | . . . . . . Robot Schematics Acquired . | . . . . . . Robots Built . | . . . . . . Authchips . | . . . . . . Time . | . . . . . . Total Robot Build Rating . | . . . . . . Part Schematics Acquired 4 | . 4 . . . . Parts Built . | . . . . . . Authchips . | . . . . . . Time . | . . . . . . Total Part Build Rating . | . . . . . . Parts Repaired . | . . . . . . Time . | . . . . . . Parts Recycled . | . . . . . . Recycled Matter . | . . . . . . Retrieved Matter . | . . . . . . Retrieved Components . | . . . . . . Parts Scanalyzed . | . . . . . . Part Schematics Acquired . | . . . . . . Parts Damaged . | . . . . . . Bothacking | -11 -10 -10 -10 -9 -8 ------------ Run | Scr Mat Min Exi Min Mat Used RIF Installer . | . . . . . . Robots Hacked . | . . . . . . Non-combat . | . . . . . . Combat . | . . . . . . Robot Hacks Applied . | . . . . . . Relay Couplers Released . | . . . . . . Fabnet Peak Effective % . | . . . . . . Robots Rewired . | . . . . . . Allies Hacked . | . . . . . . Hacks Repelled . | . . . . . . Allies | -11 -10 -10 -10 -9 -8 -------- Run | Scr Mat Min Exi Min Mat Total Allies 3 | . . 3 . . . Largest Group 3 | . . 3 3 3 . Highest-Rated Group 40 | . . 40 40 40 . Highest-Rated Ally 16 | . . 16 16 16 . Total Orders . | . . . . . . Ally Attacks 19 | . . 11 . 8 . Total Damage 161 | . . 94 . 67 . Kills 3 | . . 1 . 2 . Allies Corrupted . | . . . . . . Allies Melted . | . . . . . . Intel | -11 -10 -10 -10 -9 -8 ------- Run | Scr Mat Min Exi Min Mat Robot Analysis Total . | . . . . . . Derelict Logs Recovered 3 | . . 2 . 1 . Drone Launches . | . . . . . . Drone Recoveries . | . . . . . . Exploration | -11 -10 -10 -10 -9 -8 ------------- Run | Scr Mat Min Exi Min Mat Turns Passed 5054 | 135 1457 1166 1202 839 255 Spaces Moved 2344 | 80 739 541 549 366 69 Core 4 | 4 . . . . . Treads 141 | 3 . . . 69 69 Legs . | . . . . . . Wheels 2199 | 73 739 541 549 297 . Hover . | . . . . . . Flight . | . . . . . . Fastest Speed 50 | 50 100 175 215 160 240 Average Speed 192 | 99 157 204 215 214 287 Slowest Speed 320 | 160 175 215 215 320 320 Overloaded Moves . | . . . . . . Propulsion Burnouts . | . . . . . . Robots Hopped . | . . . . . . Cave-ins Triggered . | . . . . . . Exploration Rate (%) 57 | 5 95 97 90 48 10 Regions Visited 5 Branch Regions 3 Pre-discovered Areas 5 | . 2 1 1 1 . Known Exits Taken . | . . . . . . Unknown Exits Taken 5 | 1 1 1 1 1 . Scrap Searched 2 | . . 1 . 1 . Spaces Dug 32 | . . . . 30 2 Terrain Destroyed 78 | . 9 14 . 53 2 Melee . | . . . . . . Projectile 2 | . . . . . 2 AOE 76 | . 9 14 . 53 . Terrain Rammed . | . . . . . . Walls Destroyed . | . . . . . . Machines Disabled . | . . . . . . Actions | -11 -10 -10 -10 -9 -8 --------- Run | Scr Mat Min Exi Min Mat Total 2711 | 109 949 578 574 405 96 Wait 168 | . 119 22 14 10 3 Move 2339 | 79 738 540 548 365 69 Hop . | . . . . . . Pick Up 45 | 11 23 2 4 5 . Fast Attach 10 | 4 3 . 1 . 2 Attach 20 | 3 2 2 . 8 5 Detach . | . . . . . . Swap 16 | . 8 1 . 4 3 Drop 18 | . 9 . 7 2 . Fire 89 | 12 41 11 . 11 14 Melee . | . . . . . . Ram . | . . . . . . Kick . | . . . . . . Crush . | . . . . . . Escape Stasis . | . . . . . . Rewire . | . . . . . . Trap 6 | . 6 . . . . Miscellaneous . | . . . . . . Route ------- -11/Scrapyard -10/Materials (discovered 4 exits: [*Mat x3] / [*Min]) -10/Mines (discovered 3 exits: [*Mat x2] / *Exi) -10/Exiles (discovered 2 exits: [*Min x2]) -9/Mines -8/Materials History --------- Turn | Location | Event 12 | -11/Scrapyard | Discovered new exit (range 15) 136 | -11/Scrapyard | Entered Materials 311 | -10/Materials | Discovered new exit (range 6) 343 | -10/Materials | Build established: Mutant 416 | -10/Materials | Discovered new exit (range 15) 694 | -10/Materials | Discovered new exit (range 6) 1186 | -10/Materials | Discovered new exit (range 16) 1593 | -10/Materials | Entered Mines 1855 | -10/Mines | Discovered new exit (range 10) 1893 | -10/Mines | Learned Materials garrison access intel 1916 | -10/Mines | Discovered new exit (range 10) 1940 | -10/Mines | Assisted by bots powering up and referring to "LRC-V3" 2742 | -10/Mines | Deemed a non-threat by the Exiles lab entrance 2742 | -10/Mines | Discovered new exit (range 5) 2759 | -10/Mines | Entered Exiles 2759 | -10/Exiles | Accompanied by 3 allies 2787 | -10/Exiles | Discovered new exit (range 15) 2809 | -10/Exiles | Met 8R-AWN 2848 | -10/Exiles | Met EX-HEX 2956 | -10/Exiles | Met EX-DEC 2998 | -10/Exiles | Visited The Gauntlet 3357 | -10/Exiles | Discovered new exit (range 14) 3527 | -10/Exiles | Learned location of Zion (-6) 3581 | -10/Exiles | Met EX-BIN 3961 | -10/Exiles | Entered Mines 3961 | -9/Mines | Accompanied by 3 allies 4001 | -9/Mines | Received a Rocket Launcher from a helpful Derelict 4228 | -9/Mines | Discovered new exit (range 5) 4515 | -9/Mines | Assembled infested the area 4520 | -9/Mines | Assisted by a Guerilla fighting off Assembled 4546 | -9/Mines | Core integrity fell below 50% 4560 | -9/Mines | Destroyed 15 combat bots 4570 | -9/Mines | Core integrity fell below 20% 4603 | -9/Mines | Lost 7 parts (1p3n1u2w) 4800 | -9/Mines | Entered Materials 4800 | -8/Materials | Evolved 4 slots: Propulsion x1, Utility x3 4801 | -8/Materials | Loaded intel: 1 garrison access location 5055 | -8/Materials | Self-destructed Last Messages --------------- 05008_ O-24 Administrator uses terminal to summon reinforcements. 05008_ ALERT: Hostiles spotted, dispatching reinforcements to Terminal M001. 05008_ O-24 Administrator locks terminal. 05023_ L-31 Rogue destroyed. 05028_ U-05 Engineer destroyed. 05034_ G-47 Trooper destroyed. 05034_ Switching to secondary target: G-47 Trooper. 05034_ R-06 Scavenger collects Melee Analysis Suite. 05035_ Assault Rifle destroyed. 05036_ Lgt. Ion Engine destroyed. 05038_ R-06 Scavenger collects Imp. Aluminum Leg. 05042_ R-06 Scavenger collects Wheel. 05043_ EM Shotgun destroyed. 05045_ R-06 Scavenger collects Imp. Aluminum Leg. 05052_ C-30 ARC bursts open, deploying its payload. 05052_ L-31 Rogue unfolds itself. 05052_ G-47 Trooper unfolds itself. 05052_ G-47 Trooper suffers critical hit (Blast). 05052_ G-47 Trooper destroyed. Map ----- +----------------------------------------------------+ | ?????????????????????????????????????????????????? | | ?????????????????????????????????????????????????? | | ?????????????????????????????????????????????????? | | ?????????????????????????????????????????????????? | | ?????????????????????????????????????????????????? | | ?????????????????????????????????????????????????? | | ?????????????????????????????????????????????????? | | ?????????????????????????????????????????????????? | | ?????????????????????????????????????????????????? | | ?????????????????????????????????????????????????? | | ?????????????????????????????????????????????????? | | ?????????????????? ?????????????????????????????? | | ???????????????? ????????????????????????????? | | ??????????????? T"????????????????#####?????# | | ?????????????? ""????????????????# ?? # | | ?????????????? * ""##??????????????# """ # | | ?????????????? ???????????????# """"" # | | ??????????????? o ???????????????# """"" # | | ???????????????? = ???????????????# """"" # | | ?????????????? ? [%= ???????????????# """ # | | ?????????????# ! * ???????????????# # | | ?????????????# """ ???????????????# # | | ????????????## """ #####################+##### | | ????????????# """ %%! g #? | | ??????????"%/gg =%! g #? | | ????????????# l= % *@ g t #? | | ?????????????# ##########+######+######+####? | | ?????????????# ????????# # # ??? | | ????????????????????????# # """ # ? | | ????????????????????????# # """ # | | ???????????????????????## """ # """ # | | ???????????????????????## """"" # # """ "" | | ????????????????????????# """"" # "" # """ "" | | ????????????????????????# """"" # G" # """ "" | | ???????????????????????## """ # "" # | | ???????????????????????## # ####?### | | ???????????????????????####################??????? | | ?????????????????????????????????????????????????? | | | | | | | | | | | | | | | | | | | | | | | | | +----------------------------------------------------+ Best States ------------- Heat Dissipation 35 Energy Generation 10 Energy Capacity 250 Matter Stores 300 Matter Capacity 300 Sight Range 16 Terrain Scan Density 10 Armor Coverage 150 Weapon Shielding 33 Evasion (%) 40 Recoil Reduction 3 Salvage Targeting 1 Item Schematics ----------------- Huge Storage Unit | -10/Materials | Hacked Hcp. Storage Unit | -10/Materials | Hacked Cargo Storage Unit | -10/Materials | Hacked Seismic Detector | -10/Materials | Hacked Robot Schematics ------------------ None Fabricated ------------ Nothing Alien Tech Used ----------------- None Achievements -------------- None Challenges ------------ None Game ------ Seed ThermoelectricGravitonGuard Manual? 0 Play Time 00:25:34 Cumulative 296.7 hours Start 2022.03.26 @ 15:06:33 End 2022.03.26 @ 15:40:48 Sessions 1 Manual Loads 0 Difficulty Rogue Special Mode None Game No. 305 Rogue 305 Adventurer 0 Explorer 0 Win Type - Total 4 Types 4/0/0/0/0/0/0/0/0 Lore% 60 Gallery% 74 Achievement% 63 Wizard Run 0 Options --------- ASCII 0 Keyboard 0 Movement Numpad Keybinds 0 Fullscreen 2 Font 24/Terminus Map View 76x50 Tactical HUD 1 Map Filters NONE Filters NONE Steam 1 RUN: 9069fdd1-8dea-464c-b97e-83735eb2226c